[Event "Valenciana Championship 2022"]
[Site "Alcossebre"]
[Date "2022.06.16"]
[Round "7.1"]
[White "Carbonell Sancho, Marc"]
[Black "Cruz Lledo, Pablo"]
[Result "0-1"]
[ECO "B12"]
[WhiteElo "2269"]
[BlackElo "2435"]
[Annotator "TA"]
[PlyCount "94"]
[EventDate "2022.06.13"]
[EventType "tourn"]
[EventCountry "ESP"]
[SourceTitle "playchess.com"]
[Source "ChessBase"]
[SourceQuality "1"]
[TimeControl "5400+30"]

{[%evp 9,94,43,41,26,37,40,51,39,40,39,57,50,60,53,49,46,41,27,26,19,20,17,27,0,0,0,0,0,0,-10,0,-85,-92,-89,-85,-85,-90,-87,-94,-91,-94,-335,-320,-315,0,0,0,0,0,0,277,266,241,0,0,0,0,-5,0,0,0,0,0,-269,-250,-439,-438,-436,-426,-503,-503,-495,-495,-547,-533,-547,-518,-527,-512,-670,-681,-738,-742,-783,-779,-840,-816]} 1. e4 {[%emt 0:05:20]} c6 {[%emt 0:00:03]} 2. d4 {[%emt 0:00:03]} d5 {[%emt 0:00:03]} 3. e5 {[%emt 0:00:03]} Na6 {[%emt 0:00:04]} 4. Nf3 {[%emt 0:03:34]} g6 {[%emt 0:00:39]} 5. a3 {[%emt 0:01:59]} Bg7 {[%emt 0:00:15]} 6. c4 {[%emt 0:00:10] B12: Caro-Kann: Advance Variation.} Nc7 {[%emt 0:00:30]} 7. Nc3 {[%emt 0:00:19] [#]} Be6 $146 {[%emt 0:01:20]} ({Predecessor:} 7... Nh6 8. h3 f6 9. exf6 exf6 10. Be2 O-O 11. O-O Be6 12. c5 Qd7 13. Bf4 Nf7 {½-½ (23) Leconte,J (2250)-Akl,N Paris 1994}) 8. cxd5 {[%emt 0:03:11] White is slightly better.} Bxd5 {[%emt 0:00:42]} 9. Nxd5 {[%emt 0:00:06]} Qxd5 {[%emt 0:00:29]} 10. Qc2 {[%emt 0:01:50]} Nh6 {[%emt 0:03:28]} 11. Bc4 {[%emt 0:00:52]} Qd7 {[%emt 0:00:11]} 12. Bd2 {[%emt 0:04:00]} Nf5 {[%emt 0:05:33]} 13. Qe4 {[%emt 0:00:42]} O-O-O {[%emt 0:01:12][%cal Rf5d4]} 14. Bc3 {[%emt 0:02:36]} e6 {[%emt 0:08:29]} 15. O-O {[%emt 0:01:35]} Kb8 {[%emt 0:00:44]} 16. a4 {[%emt 0:03:33]} Bf8 {[%emt 0:00:07]} 17. Rfd1 {[%emt 0:03:08]} Be7 {[%emt 0:02:25]} 18. h4 {[%emt 0:13:50]} h6 {[%emt 0:04:41]} 19. Be1 {[%emt 0:00:50]} Nd5 {[%emt 0:00:54]} 20. b4 {[%emt 0:05:01]} (20. Ba5 $11 {remains equal.}) 20... Bxb4 $17 {[%emt 0:08:23] Black is more active.} 21. Bxb4 {[%emt 0:00:32]} Nxb4 {[%emt 0:00:03] Pair of Knights!} 22. a5 {[%emt 0:00:07]} Nd5 {[%emt 0:00:57][%cal Bb4d5,Bd5c7,Bc7a6][%mdl 32]} 23. Rd3 {[%emt 0:02:49] Prevents Nc3.} a6 {[%emt 0:05:26]} 24. Rb1 {[%emt 0:05:56] Black must now prevent Bxa6.} Nc7 {[%emt 0:00:06]} 25. Bxa6 $2 {[%emt 0:03:29]} Nxa6 $19 {[%emt 0:00:13]} 26. Rdb3 {[%emt 0:00:01]} b5 $2 {[%emt 0:00:14]} (26... Ka7 $19 {Strongly threatening ...Rb8.} 27. Rxb7+ Qxb7 28. Rxb7+ Kxb7) 27. axb6 $11 {[%emt 0:00:08]} Kb7 {[%emt 0:00:23][%cal Rf5d4]} 28. Ra3 {[%emt 0:01:41]} Ra8 {[%emt 0:05:38]} (28... Nxd4 29. Nxd4 Qxd4 30. Qe2 $16 (30. Qf3 Rd5 $11)) 29. g4 $1 {[%emt 0:01:35]} Ne7 {[%emt 0:02:18][%mdl 8192]} (29... Rhg8 $1 $11) 30. Nd2 $1 $18 {[%emt 0:01:45] And now Nc4 would win.} Qd5 {[%emt 0:00:14] Prevents Nc4.} (30... Nc5 $2 31. Qe3 $16) 31. Qd3 $2 {[%emt 0:02:40]} (31. Qf4 $1 $18) 31... Rhd8 $11 {[%emt 0:06:06]} 32. Nc4 {[%emt 0:16:10]} Qxd4 {[%emt 0:01:13]} (32... Nc5 $2 33. Ra7+ Rxa7 34. bxa7+ Kc7 35. Qc3 $18) 33. Qe2 {[%emt 0:00:17]} (33. Nd6+ $2 Rxd6 $1 {[%mdl 512]} 34. exd6 Qxg4+ 35. Kf1 Nd5 $19) 33... h5 {[%emt 0:06:36]} 34. Nd6+ {[%emt 0:05:55]} Rxd6 {[%emt 0:00:07]} 35. exd6 {[%emt 0:00:07]} Nd5 {[%emt 0:00:06] aiming for ...Nc3.} (35... Qxd6 36. Rba1 Qd4 37. Rxa6 Qxa1+ 38. Rxa1 Rxa1+ 39. Kh2 $16) 36. Rba1 $2 {[%emt 0:05:40][%mdl 8192]} ({Not} 36. gxh5 $2 Nc3 37. Rxc3 Qxc3 $19) (36. d7 $1 $11 {and White has nothing to worry.} Ndb4 37. Rd1 (37. gxh5 $2 gxh5 38. Rg3 Qxh4 $19) 37... Qxb6 38. Rb1) 36... Ndb4 $1 $19 {[%emt 0:01:34]} ({Resist} 36... Qxb6 37. Rxa6 $1 Rxa6 38. Qxa6+ Qxa6 39. Rxa6 $16) ({Weaker is} 36... Qxg4+ 37. Qxg4 hxg4 38. Rxa6 $1 Rxa6 39. Rxa6 Nxb6 40. Ra3 $11) 37. d7 $2 {[%emt 0:03:54]} (37. Rb1) 37... Qxg4+ {[%emt 0:02:40] Black is clearly winning.} 38. Qxg4 {[%emt 0:00:01]} hxg4 {[%emt 0:00:09]} 39. Rd1 {[%emt 0:00:11] [#]} Rd8 $1 {[%emt 0:00:25]} 40. f3 {[%emt 0:00:08]} g3 {[%emt 0:01:34]} 41. Kg2 {[%emt 0:00:29]} Kxb6 {[%emt 0:01:00]} 42. Kxg3 {[%emt 0:00:35]} Nd5 {[%emt 0:01:25]} 43. h5 {[%emt 0:00:48]} gxh5 {[%emt 0:00:12] ...c5 is the strong threat.} 44. Rh1 {[%emt 0:00:05]} Rxd7 {[%emt 0:00:34]} 45. Rxh5 {[%emt 0:00:06]} c5 {[%emt 0:00:07][%cal Bc6c5,Bc5c4][%mdl 32]} 46. Rh1 {[%emt 0:01:04]} c4 {[%emt 0:00:17]} 47. Kf2 {[%emt 0:00:23]} Nab4 {[%emt 0:00:29] Weighted Error Value: White=0.47/Black=0.19 (very precise)} 0-1

[Event "Valenciana Championship 2022"]
[Site "Alcossebre"]
[Date "2022.06.16"]
[Round "7.2"]
[White "Navarro Molina, Carmelo Jose"]
[Black "Valmana Canto, Jaime"]
[Result "0-1"]
[ECO "E63"]
[WhiteElo "1834"]
[BlackElo "2392"]
[Annotator "TA"]
[PlyCount "76"]
[EventDate "2022.06.13"]
[EventType "tourn"]
[EventCountry "ESP"]
[SourceTitle "playchess.com"]
[Source "ChessBase"]
[SourceQuality "1"]
[TimeControl "5400+30"]

{[%evp 14,76,38,27,30,31,69,33,28,-14,-4,-14,16,-10,-11,-5,-5,-8,-8,-33,-17,-39,-31,-36,-31,-28,-14,-35,-23,-22,-35,-24,-16,-18,-16,-23,-12,-20,-12,-13,-9,-18,-21,-22,-22,-98,-30,-22,-22,-25,-22,-29,-25,-43,-50,-44,-43,-46,-47,-102,-88,-106,-85,-579,-566]} 1. d4 {[%emt 0:00:07]} Nf6 {[%emt 0:03:16]} 2. c4 {[%emt 0:00:03]} g6 {[%emt 0:00:21]} 3. g3 {[%emt 0:00:04]} Bg7 {[%emt 0:01:15]} 4. Bg2 {[%emt 0:00:05]} O-O {[%emt 0:00:06]} 5. Nc3 {[%emt 0:00:03]} d6 {[%emt 0:00:27]} 6. Nf3 {[%emt 0:00:05]} Nc6 {[%emt 0:00:08]} 7. O-O {[%emt 0:00:07]} a6 {[%emt 0:00:18] 7...e5 gains popularity.} 8. Qd3 {[%emt 0:01:04]} Rb8 {[%emt 0:08:35] E63: King's Indian: Fianchetto: Panno Variation with 7...a6.} 9. d5 {[%emt 0:06:03]} Na7 {[%emt 0:05:57]} 10. Be3 {[%emt 0:03:09]} c5 {[%emt 0:00:26] White is slightly better.} 11. dxc6 {[%emt 0:12:05]} Nxc6 {[%emt 0:01:02] [#]} 12. Rac1 $146 {[%emt 0:02:40]} ({Predecessor:} 12. Nd4 Ne5 13. Qc2 Nxc4 14. Bg5 Ne5 15. Rfd1 h6 16. Bxf6 Bxf6 17. Nd5 Bg7 18. h3 {0-1 (42) Matveeva,O (2168)-Vujcic,M (1987) Chess.com INT 2022}) 12... Ng4 {[%emt 0:03:34]} (12... b5 $5) 13. Qd2 {[%emt 0:04:50]} Nxe3 {[%emt 0:01:34]} 14. Qxe3 {[%emt 0:00:18]} Be6 {[%emt 0:11:58]} 15. b3 {[%emt 0:03:32]} Qa5 {[%emt 0:00:08]} 16. Qd2 {[%emt 0:02:25]} Rfd8 {[%emt 0:03:54]} 17. Nd5 {[%emt 0:04:01][%cal Od5e7] [#] Nxe7+! is the strong threat.} Qxd2 {[%emt 0:03:39]} 18. Nxd2 {[%emt 0:00:07]} Kf8 {[%emt 0:00:07]} 19. e3 {[%emt 0:02:35]} Ne5 {[%emt 0:06:31]} 20. Nf4 {[%emt 0:02:40]} Bd7 {[%emt 0:01:14]} 21. Nf3 {[%emt 0:04:33]} Nxf3+ {[%emt 0:05:17]} 22. Bxf3 {[%emt 0:00:08]} e6 {[%emt 0:00:24]} 23. Rfd1 {[%emt 0:01:32]} Ke7 {[%emt 0:00:08]} 24. Kf1 {[%emt 0:03:24]} Rdc8 {[%emt 0:02:34]} 25. Nd3 {[%emt 0:03:49]} Rc7 {[%emt 0:03:38]} 26. a4 {[%emt 0:08:33]} Rbc8 {[%emt 0:09:48]} 27. Ke2 {[%emt 0:01:35]} Be8 {[%emt 0:01:04]} 28. h4 {[%emt 0:01:28]} h6 {[%emt 0:09:41]} 29. Rh1 {[%emt 0:01:57] [#]} (29. Bg2 $11 {remains equal.}) 29... Kd8 {[%emt 0:00:14]} (29... b5 $1 $17 {[%cal Rb5a4]} 30. cxb5 axb5) 30. Rhd1 $11 {[%emt 0:00:10]} b5 {[%emt 0:02:43]} 31. axb5 {[%emt 0:01:42]} axb5 {[%emt 0:00:07]} 32. c5 $1 {[%emt 0:08:46]} b4 {[%emt 0:00:36]} 33. Nxb4 {[%emt 0:07:24]} Bb5+ {[%emt 0:00:23]} 34. Ke1 {[%emt 0:00:31]} Rxc5 {[%emt 0:00:16]} 35. Rxc5 {[%emt 0:05:39]} Rxc5 {[%emt 0:00:07]} 36. Nd3 {[%emt 0:00:05]} ({Avoid the trap} 36. Rxd6+ $2 Ke7 37. Rd4 Bxd4 38. exd4 Rc1+ 39. Bd1 Rb1 $19) (36. Na2 $1 $15) 36... Rc2 $17 {[%emt 0:05:29]} 37. Be2 {[%emt 0:02:35]} Ke7 {[%emt 0:02:07] Black is more active.} 38. Rc1 $2 {[%emt 0:01:16][%mdl 8192]} (38. Rb1 $17) 38... Bxd3 {[%emt 0:10:24] Weighted Error Value: White=0.41/Black=0.09 (flawless)} 0-1

[Event "Valenciana Championship 2022"]
[Site "Alcossebre"]
[Date "2022.06.16"]
[Round "7.3"]
[White "Luque Saiz, Andres"]
[Black "Jordan Martinez, David"]
[Result "1-0"]
[ECO "C54"]
[WhiteElo "2273"]
[BlackElo "2154"]
[Annotator "TA"]
[PlyCount "111"]
[EventDate "2022.06.13"]
[EventType "tourn"]
[EventCountry "ESP"]
[SourceTitle "playchess.com"]
[Source "ChessBase"]
[SourceQuality "1"]
[TimeControl "5400+30"]

{[%evp 22,111,28,11,11,0,6,0,0,3,0,0,0,19,17,0,0,0,0,-14,12,19,20,20,19,8,15,12,57,47,37,8,7,3,11,11,33,33,52,33,33,36,58,5,74,0,5,-2,74,0,74,-14,67,-15,-15,-17,131,118,134,64,64,64,64,64,218,64,342,64,64,4,0,0,64,64,279,271,256,327,1187,478,1109,1136,1214,1112,1382,1321,5214,5213,5114,5106,4786,2441]} 1. e4 {[%emt 0:00:06]} e5 {[%emt 0:00:28]} 2. Nf3 {[%emt 0:00:06]} Nc6 {[%emt 0:00:09]} 3. Bc4 {[%emt 0:00:18]} Nf6 {[%emt 0:00:45]} 4. d3 {[%emt 0:00:05]} Bc5 {[%emt 0:00:14]} 5. O-O {[%emt 0:00:53]} d6 {[%emt 0:02:47]} 6. c3 {[%emt 0:01:23]} O-O {[%emt 0:01:54]} 7. Nbd2 {[%emt 0:06:56]} a6 {[%emt 0:00:23]} 8. Bb3 {[%emt 0:01:32]} h6 {[%emt 0:00:32]} 9. h3 {[%emt 0:00:37]} Ba7 {[%emt 0:00:39]} 10. Re1 {[%emt 0:01:25]} Nh5 {[%emt 0:02:06] 10...Nh5 was played by the boomers.} 11. Nf1 {[%emt 0:02:41]} Qf6 {[%emt 0:00:15]} 12. Be3 {[%emt 0:07:54]} Bxe3 {[%emt 0:00:22] C54: Giuoco Piano: 4 c3 Nf6, main lines with 5 d4 and 5 d3.} 13. Nxe3 {[%emt 0:08:54]} Nf4 {[%emt 0:00:20]} 14. Nd5 {[%emt 0:01:26]} Nxd5 {[%emt 0:00:15] The position is equal.} 15. exd5 {[%emt 0:00:53]} Ne7 {[%emt 0:00:42]} 16. d4 {[%emt 0:04:03][%cal Rd4e5]} Ng6 {[%emt 0:00:59]} 17. dxe5 {[%emt 0:04:53]} dxe5 {[%emt 0:02:26]} 18. Bc2 {[%emt 0:09:19]} Bf5 {[%emt 0:02:24]} 19. Bxf5 {[%emt 0:01:47]} Qxf5 {[%emt 0:00:05]} 20. Qb1 {[%emt 0:00:04] [#]} Qh5 $146 {[%emt 0:05:37]} ({Predecessor:} 20... Qf6 21. c4 Rae8 22. Qc2 c6 23. Rad1 cxd5 24. Rxd5 e4 25. Rxe4 Rxe4 26. Qxe4 Qxb2 27. Rd2 Qb4 28. Rd7 b5 29. Rd4 Qb2 30. cxb5 {½-½ (30) Dragun,K (2599)-Sevian,S (2603) Varadero 2016}) 21. Kh2 {[%emt 0:06:43] Hoping for g4.} Nh4 $1 {[%emt 0:15:19]} 22. Nxh4 {[%emt 0:11:30]} Qxh4 {[%emt 0:00:16]} 23. Qf5 {[%emt 0:00:10]} Rae8 {[%emt 0:15:10]} 24. Re4 {[%emt 0:08:41][%cal Be1e4,Be4b4,Bb4b6][%mdl 32]} Qg5 {[%emt 0:02:27]} 25. Qxg5 {[%emt 0:00:19]} hxg5 $14 {[%emt 0:00:02][%mdl 4096] Endgame KRR-KRR} 26. Rd1 {[%emt 0:01:54]} f6 {[%emt 0:08:24]} 27. Rb4 {[%emt 0:02:51]} Rb8 {[%emt 0:04:28]} 28. d6 {[%emt 0:01:46]} c6 {[%emt 0:02:24]} ({But not} 28... cxd6 29. Rxd6 a5 30. Rb5 $16) 29. Rb6 {[%emt 0:02:27]} Rfd8 {[%emt 0:11:26]} 30. c4 {[%emt 0:00:39]} Rd7 {[%emt 0:00:06]} 31. c5 {[%emt 0:00:39]} Kf7 {[%emt 0:01:17]} 32. a4 {[%emt 0:03:15]} (32. Kg3 $14) 32... Ke6 {[%emt 0:00:36]} (32... a5 $11) 33. Kg3 {[%emt 0:06:43]} (33. a5 $1 $16) 33... Rh8 {[%emt 0:02:19]} 34. Rb4 {[%emt 0:01:57]} Rb8 {[%emt 0:01:24]} (34... a5 $11 35. Rc4 Rb8) 35. Kf3 {[%emt 0:01:41] White is more active.} (35. a5 $1 $16) 35... Rh8 {[%emt 0:00:57] Inhibits h4.} (35... a5 $11 {remains equal.} 36. Rb3 Rh8) 36. Ke3 {[%emt 0:01:16]} ({White should play} 36. a5 $16) 36... g6 {[%emt 0:05:50]} (36... a5 $1 $11 37. Rb6 Rh4) 37. f3 {[%emt 0:00:29]} (37. a5 $14) 37... a5 $1 $11 {[%emt 0:02:36]} 38. Rc4 {[%emt 0:00:26]} Rh4 {[%emt 0:02:37]} (38... Rb8 $11) 39. Rxh4 $16 {[%emt 0:00:45]} gxh4 {[%emt 0:00:01] KR-KR} 40. Rd3 {[%emt 0:00:21]} (40. f4 $1 $16) 40... f5 {[%emt 0:00:26]} 41. Kd2 {[%emt 0:00:37]} g5 {[%emt 0:01:54]} 42. Kc3 {[%emt 0:00:28]} Rg7 $2 {[%emt 0:04:23]} (42... Rd8 $1 $14) 43. Rd1 $2 {[%emt 0:00:27]} (43. b4 $1 $18 {[%cal Rb4a5]}) 43... Rd7 $2 {[%emt 0:00:36][%mdl 8192] [#]} ({Better is} 43... Rg8 $1 $14) 44. Kc4 $2 {[%emt 0:00:28]} (44. b4 $1 $18) 44... Rd8 $14 {[%emt 0:00:41]} 45. Rg1 {[%emt 0:00:38]} (45. b3 $14) 45... Rb8 $1 $11 {[%emt 0:00:40]} 46. Rd1 {[%emt 0:00:17]} (46. b4 $11) 46... Rd8 $1 $14 {[%emt 0:03:49]} 47. Re1 {[%emt 0:00:29]} Rd7 $2 {[%emt 0:00:00] [#]} ({Black should try} 47... Rb8 $14) 48. b4 $1 $18 {[%emt 0:00:27]} axb4 {[%emt 0:00:00]} 49. Kxb4 {[%emt 0:00:03] Strongly threatening Ka5.} Kd5 $2 {[%emt 0:00:00]} (49... Rd8 50. Ka5 Re8) 50. Rd1+ {[%emt 0:00:03] White is clearly winning.} Ke6 {[%emt 0:00:00]} 51. Ka5 {[%emt 0:00:27]} e4 {[%emt 0:00:00]} 52. fxe4 {[%emt 0:00:20]} fxe4 {[%emt 0:00:00]} 53. Kb6 {[%emt 0:00:22]} Ke5 {[%emt 0:00:00]} 54. a5 {[%emt 0:00:22][%cal Ba4a5,Ba5a6][%mdl 32]} e3 {[%emt 0:00:00]} 55. a6 {[%emt 0:00:10]} e2 {[%emt 0:00:35]} 56. Re1 {[%emt 0:00:06] Weighted Error Value: White=0.37/Black=0.52} 1-0